[Event "Early-Titled-Tuesday-Blitz-October-24-2023"]
[Site "Chess.com"]
[Date "2023.10.24"]
[Round "9"]
[White "NikolaGry"]
[Black "SlavenPastar"]
[Result "0-1"]
[WhiteElo "2738"]
[BlackElo "2630"]
[TimeControl "180+1"]
[EndTime "9:42:59 PDT"]
[Termination "SlavenPastar won by resignation"]

1. d4 {[%clk 0:03:00.9]} 1... b6 {[%clk 0:03:00.9]} 2. c4 {[%clk 0:02:58.5]}
2... Bb7 {[%clk 0:03:01.3]} 3. Nc3 {[%clk 0:02:59.1]} 3... Nf6 {[%clk
0:03:01.6]} 4. f3 {[%clk 0:02:56.8]} 4... d5 {[%clk 0:03:00.9]} 5. cxd5 {[%clk
0:02:56.7]} 5... Nxd5 {[%clk 0:03:01.8]} 6. e4 {[%clk 0:02:56.9]} 6... Nxc3
{[%clk 0:03:02]} 7. bxc3 {[%clk 0:02:57.3]} 7... e6 {[%clk 0:03:01.2]} 8. Be3
{[%clk 0:02:31.9]} 8... Be7 {[%clk 0:02:52.5]} 9. c4 {[%clk 0:02:19.9]} 9... O-O
{[%clk 0:02:28.7]} 10. Ne2 {[%clk 0:02:17.6]} 10... Bb4+ {[%clk 0:02:18]} 11.
Kf2 {[%clk 0:02:16.9]} 11... c5 {[%clk 0:02:17.5]} 12. d5 {[%clk 0:02:13.6]}
12... Nd7 {[%clk 0:02:15.4]} 13. a3 {[%clk 0:02:10.3]} 13... Ba5 {[%clk
0:02:14]} 14. Ng3 {[%clk 0:02:03.9]} 14... Ne5 {[%clk 0:01:57.8]} 15. f4 {[%clk
0:01:47.4]} 15... Ng6 {[%clk 0:01:55.2]} 16. Rc1 {[%clk 0:01:35.2]} 16... Qh4
{[%clk 0:01:50.5]} 17. Qf3 {[%clk 0:01:13.5]} 17... f5 {[%clk 0:01:44.9]} 18.
exf5 {[%clk 0:01:10.4]} 18... Rxf5 {[%clk 0:01:41.1]} 19. Kg1 {[%clk 0:01:01.2]}
19... Rff8 {[%clk 0:01:23.5]} 20. f5 {[%clk 0:00:47.6]} 20... Ne7 {[%clk
0:00:59.3]} 21. Bf2 {[%clk 0:00:33.7]} 21... exd5 {[%clk 0:00:50.7]} 22. Rd1
{[%clk 0:00:22.8]} 22... Rad8 {[%clk 0:00:45.4]} 23. Nh5 {[%clk 0:00:15.8]}
23... Qe4 {[%clk 0:00:44.5]} 24. Qxe4 {[%clk 0:00:12.8]} 24... dxe4 {[%clk
0:00:45.4]} 25. Rxd8 {[%clk 0:00:11.7]} 25... Rxd8 {[%clk 0:00:45.1]} 26. f6
{[%clk 0:00:12.1]} 26... gxf6 {[%clk 0:00:43.1]} 27. Nxf6+ {[%clk 0:00:12.3]}
27... Kf7 {[%clk 0:00:43.4]} 28. Ng4 {[%clk 0:00:12.2]} 28... Bc3 {[%clk
0:00:32.5]} 29. h4 {[%clk 0:00:11.6]} 29... h5 {[%clk 0:00:25.2]} 30. Ne3 {[%clk
0:00:10.2]} 30... Bd4 {[%clk 0:00:24.5]} 31. g4 {[%clk 0:00:09.2]} 31... hxg4
{[%clk 0:00:23.5]} 32. Nxg4 {[%clk 0:00:08]} 32... Rg8 {[%clk 0:00:22.4]} 33.
Bh3 {[%clk 0:00:07.8]} 33... Bc8 {[%clk 0:00:22]} 34. Kh2 {[%clk 0:00:06.3]}
34... Bxg4 {[%clk 0:00:20.9]} 35. Rf1 {[%clk 0:00:06.8]} 35... Bxf2 {[%clk
0:00:20]} 36. Rxf2+ {[%clk 0:00:06.9]} 36... Bf3 {[%clk 0:00:20]} 37. h5 {[%clk
0:00:05.8]} 37... Rh8 {[%clk 0:00:17.9]} 38. Bg4 {[%clk 0:00:05.4]} 38... Kg7
{[%clk 0:00:18]} 39. Bxf3 {[%clk 0:00:05.5]} 39... exf3 {[%clk 0:00:18.9]} 40.
Rxf3 {[%clk 0:00:06]} 40... Rxh5+ {[%clk 0:00:19.1]} 41. Kg3 {[%clk 0:00:06.5]}
41... Rf5 {[%clk 0:00:19.5]} 42. Rd3 {[%clk 0:00:06.1]} 42... Kf6 {[%clk
0:00:19.6]} 43. Rd7 {[%clk 0:00:05.8]} 43... Re5 {[%clk 0:00:19]} 44. Rxa7
{[%clk 0:00:05.4]} 44... Re3+ {[%clk 0:00:18.6]} 45. Kf4 {[%clk 0:00:05.5]}
45... Rc3 {[%clk 0:00:18.7]} 46. Ra6 {[%clk 0:00:05.1]} 46... Rxc4+ {[%clk
0:00:18.8]} 47. Ke3 {[%clk 0:00:05.3]} 47... Nd5+ {[%clk 0:00:19.1]} 48. Kd3
{[%clk 0:00:05]} 48... Rd4+ {[%clk 0:00:19.6]} 49. Kc2 {[%clk 0:00:04.9]} 49...
Ke5 {[%clk 0:00:20]} 50. a4 {[%clk 0:00:05.2]} 50... Nb4+ {[%clk 0:00:19]} 0-1

[Event "Early-Titled-Tuesday-Blitz-October-24-2023"]
[Site "Chess.com"]
[Date "2023.10.24"]
[Round "9"]
[White "seopie"]
[Black "karinachess1"]
[Result "1-0"]
[WhiteElo "2895"]
[BlackElo "2635"]
[TimeControl "180+1"]
[EndTime "9:43:00 PDT"]
[Termination "seopie won by resignation"]

1. d4 {[%clk 0:03:00.9]} 1... Nf6 {[%clk 0:02:59.7]} 2. c4 {[%clk 0:03:01.3]}
2... e6 {[%clk 0:02:59.9]} 3. Nf3 {[%clk 0:03:01.8]} 3... d5 {[%clk 0:03:00.1]}
4. Nc3 {[%clk 0:03:01.8]} 4... Bb4 {[%clk 0:02:57.1]} 5. cxd5 {[%clk 0:03:01.1]}
5... exd5 {[%clk 0:02:58]} 6. Bf4 {[%clk 0:03:01.3]} 6... c6 {[%clk 0:02:47.8]}
7. Qc2 {[%clk 0:02:57.7]} 7... O-O {[%clk 0:02:46.6]} 8. e3 {[%clk 0:02:57.5]}
8... Bd6 {[%clk 0:02:34.6]} 9. Bg5 {[%clk 0:02:50.3]} 9... Nbd7 {[%clk
0:02:27.6]} 10. Bd3 {[%clk 0:02:49.6]} 10... Be7 {[%clk 0:02:00.3]} 11. O-O
{[%clk 0:02:47.1]} 11... Re8 {[%clk 0:01:58.8]} 12. Rfe1 {[%clk 0:02:43.5]}
12... Nf8 {[%clk 0:01:54.8]} 13. h3 {[%clk 0:02:41.8]} 13... g6 {[%clk
0:01:50.4]} 14. Bh6 {[%clk 0:02:34.5]} 14... Ne6 {[%clk 0:01:50.2]} 15. Ne5
{[%clk 0:02:33]} 15... Ng7 {[%clk 0:01:49.4]} 16. g4 {[%clk 0:02:29.1]} 16...
Bd6 {[%clk 0:01:31.7]} 17. f4 {[%clk 0:02:28.8]} 17... c5 {[%clk 0:01:18.7]} 18.
Qf2 {[%clk 0:02:17.9]} 18... Bd7 {[%clk 0:00:52.4]} 19. Bg5 {[%clk 0:02:13.4]}
19... Bc6 {[%clk 0:00:46.8]} 20. Bh4 {[%clk 0:01:44.3]} 20... Be7 {[%clk
0:00:42.9]} 21. Bg3 {[%clk 0:01:43.7]} 21... Ne4 {[%clk 0:00:38.1]} 22. Bxe4
{[%clk 0:01:38.7]} 22... dxe4 {[%clk 0:00:39]} 23. Nxc6 {[%clk 0:01:29.1]} 23...
bxc6 {[%clk 0:00:38.6]} 24. Nxe4 {[%clk 0:01:29.1]} 24... cxd4 {[%clk
0:00:36.5]} 25. exd4 {[%clk 0:01:29.3]} 25... Qb6 {[%clk 0:00:23]} 26. f5 {[%clk
0:01:27]} 26... Bb4 {[%clk 0:00:20]} 27. Re2 {[%clk 0:01:25.3]} 27... Kh8 {[%clk
0:00:16.6]} 28. Be5 {[%clk 0:01:21.6]} 28... Rf8 {[%clk 0:00:15.1]} 29. Kh1
{[%clk 0:01:17.8]} 29... Rae8 {[%clk 0:00:09.5]} 30. Rf1 {[%clk 0:01:16.4]}
30... c5 {[%clk 0:00:06.5]} 31. dxc5 {[%clk 0:01:10.3]} 31... Qd8 {[%clk
0:00:04.8]} 32. Qd4 {[%clk 0:01:05.7]} 32... Qxd4 {[%clk 0:00:04]} 33. Bxd4
{[%clk 0:01:05.9]} 33... gxf5 {[%clk 0:00:03.2]} 34. gxf5 {[%clk 0:01:05.9]}
34... f6 {[%clk 0:00:04.1]} 35. a3 {[%clk 0:00:59]} 35... Nh5 {[%clk 0:00:04.1]}
36. axb4 {[%clk 0:00:56]} 36... Rxe4 {[%clk 0:00:04]} 37. Rxe4 {[%clk
0:00:55.9]} 37... Ng3+ {[%clk 0:00:04.6]} 38. Kg2 {[%clk 0:00:54.8]} 38... Nxe4
{[%clk 0:00:05.5]} 39. Re1 {[%clk 0:00:53.9]} 39... Nd2 {[%clk 0:00:04.6]} 40.
Re2 {[%clk 0:00:50]} 40... Nb3 {[%clk 0:00:04.1]} 41. Bc3 {[%clk 0:00:49.4]}
41... Kg7 {[%clk 0:00:04.1]} 42. Re7+ {[%clk 0:00:48.6]} 42... Kh6 {[%clk
0:00:04.7]} 43. Kf3 {[%clk 0:00:45]} 43... Kg5 {[%clk 0:00:05.1]} 44. Ke4 {[%clk
0:00:45.3]} 44... h5 {[%clk 0:00:04.5]} 45. c6 {[%clk 0:00:42.8]} 45... Kh4
{[%clk 0:00:04]} 46. c7 {[%clk 0:00:41.2]} 46... a5 {[%clk 0:00:04.2]} 47. bxa5
{[%clk 0:00:39]} 47... Nc5+ {[%clk 0:00:03.9]} 48. Kd5 {[%clk 0:00:38.6]} 48...
Na6 {[%clk 0:00:04.6]} 49. b4 {[%clk 0:00:35]} 49... Kxh3 {[%clk 0:00:04.7]} 50.
b5 {[%clk 0:00:34.7]} 50... Nxc7+ {[%clk 0:00:05]} 51. Rxc7 {[%clk 0:00:34.4]}
51... h4 {[%clk 0:00:05.5]} 52. b6 {[%clk 0:00:32.5]} 52... Kg2 {[%clk
0:00:05.1]} 53. Rg7+ {[%clk 0:00:31.3]} 53... Kf3 {[%clk 0:00:04.4]} 54. Rh7
{[%clk 0:00:31.1]} 1-0

[Event "Early-Titled-Tuesday-Blitz-October-24-2023"]
[Site "Chess.com"]
[Date "2023.10.24"]
[Round "9"]
[White "Arimin1329"]
[Black "GiorgianBarbosa"]
[Result "0-1"]
[WhiteElo "2308"]
[BlackElo "2415"]
[TimeControl "180+1"]
[EndTime "9:43:02 PDT"]
[Termination "GiorgianBarbosa won by checkmate"]

1. Nf3 {[%clk 0:02:44.9]} 1... Nf6 {[%clk 0:02:58.9]} 2. d4 {[%clk 0:02:44]}
2... e6 {[%clk 0:02:58.2]} 3. g3 {[%clk 0:02:43.7]} 3... Be7 {[%clk 0:02:57]} 4.
Bg2 {[%clk 0:02:43.4]} 4... O-O {[%clk 0:02:57.7]} 5. O-O {[%clk 0:02:43.5]}
5... d5 {[%clk 0:02:58.2]} 6. b3 {[%clk 0:02:44]} 6... c6 {[%clk 0:02:54.7]} 7.
Bb2 {[%clk 0:02:44.9]} 7... a5 {[%clk 0:02:54]} 8. c4 {[%clk 0:02:43.8]} 8... b6
{[%clk 0:02:54.2]} 9. Nfd2 {[%clk 0:02:42.7]} 9... Ba6 {[%clk 0:02:52.6]} 10.
Nc3 {[%clk 0:02:42]} 10... b5 {[%clk 0:02:42.7]} 11. e4 {[%clk 0:02:37.3]} 11...
dxc4 {[%clk 0:02:24.3]} 12. bxc4 {[%clk 0:02:28.3]} 12... Qxd4 {[%clk
0:02:22.7]} 13. cxb5 {[%clk 0:01:57.8]} 13... cxb5 {[%clk 0:02:19.7]} 14. e5
{[%clk 0:01:57.4]} 14... Ra7 {[%clk 0:02:07.8]} 15. Nf3 {[%clk 0:01:39.1]} 15...
Qb4 {[%clk 0:01:52.7]} 16. exf6 {[%clk 0:01:29]} 16... Bxf6 {[%clk 0:01:53.6]}
17. Qc1 {[%clk 0:01:17.7]} 17... Rc7 {[%clk 0:01:39.4]} 18. Ba3 {[%clk
0:01:14.7]} 18... Qxc3 {[%clk 0:01:30.7]} 19. Bxf8 {[%clk 0:01:14.9]} 19... Kxf8
{[%clk 0:01:13.2]} 20. Qf4 {[%clk 0:01:11]} 20... Qc4 {[%clk 0:00:42.3]} 21. Qe3
{[%clk 0:01:02.7]} 21... Bxa1 {[%clk 0:00:39.1]} 22. Rxa1 {[%clk 0:01:02.4]}
22... Qc3 {[%clk 0:00:25.1]} 23. Qb6 {[%clk 0:00:50.5]} 23... Qxa1+ {[%clk
0:00:24]} 24. Bf1 {[%clk 0:00:50.8]} 24... b4 {[%clk 0:00:15]} 25. Qxb8+ {[%clk
0:00:43]} 25... Rc8 {[%clk 0:00:15.1]} 26. Qd6+ {[%clk 0:00:43.4]} 26... Kg8
{[%clk 0:00:14.8]} 27. Qxa6 {[%clk 0:00:43.1]} 27... Rf8 {[%clk 0:00:10.7]} 28.
Qc4 {[%clk 0:00:36.2]} 28... g6 {[%clk 0:00:07.9]} 29. h4 {[%clk 0:00:34.8]}
29... Qc3 {[%clk 0:00:06.8]} 30. Qb3 {[%clk 0:00:30]} 30... Qxb3 {[%clk
0:00:06.4]} 31. axb3 {[%clk 0:00:30.9]} 31... Ra8 {[%clk 0:00:03.5]} 32. Bb5
{[%clk 0:00:30]} 32... Rc8 {[%clk 0:00:04]} 33. Nd4 {[%clk 0:00:27.3]} 33... Rc3
{[%clk 0:00:04]} 34. Ba4 {[%clk 0:00:22.4]} 34... Kg7 {[%clk 0:00:04.5]} 35. Kf1
{[%clk 0:00:20.1]} 35... Rc5 {[%clk 0:00:04.8]} 36. Ke2 {[%clk 0:00:20.1]} 36...
h5 {[%clk 0:00:05.2]} 37. Kd3 {[%clk 0:00:19.6]} 37... e5 {[%clk 0:00:05.5]} 38.
Nc6 {[%clk 0:00:19.2]} 38... f6 {[%clk 0:00:05.5]} 39. Ke4 {[%clk 0:00:19.3]}
39... Kf7 {[%clk 0:00:05.1]} 40. f4 {[%clk 0:00:15.5]} 40... exf4 {[%clk
0:00:05]} 41. gxf4 {[%clk 0:00:16.4]} 41... f5+ {[%clk 0:00:05.3]} 42. Kd4
{[%clk 0:00:16.6]} 42... Rc3 {[%clk 0:00:05.7]} 43. Nxa5 {[%clk 0:00:16]} 43...
Rh3 {[%clk 0:00:06.6]} 44. Nc6 {[%clk 0:00:15.6]} 44... Rxh4 {[%clk 0:00:07.2]}
45. Nxb4 {[%clk 0:00:16.5]} 45... Rxf4+ {[%clk 0:00:07.4]} 46. Ke5 {[%clk
0:00:17]} 46... Rxb4 {[%clk 0:00:06.6]} 47. Bc6 {[%clk 0:00:16.2]} 47... Kg7
{[%clk 0:00:06.5]} 48. Bd5 {[%clk 0:00:16.3]} 48... h4 {[%clk 0:00:06.9]} 49.
Bc4 {[%clk 0:00:15.1]} 49... h3 {[%clk 0:00:06.9]} 50. Kf4 {[%clk 0:00:15.5]}
50... h2 {[%clk 0:00:07.1]} 51. Kg5 {[%clk 0:00:14.5]} 51... h1=Q {[%clk
0:00:06.3]} 52. Bf7 {[%clk 0:00:15.4]} 52... Qh5# {[%clk 0:00:05.5]} 0-1

[Event "Early-Titled-Tuesday-Blitz-October-24-2023"]
[Site "Chess.com"]
[Date "2023.10.24"]
[Round "9"]
[White "OparinGrigoriy"]
[Black "Legendinunknown"]
[Result "1-0"]
[WhiteElo "2983"]
[BlackElo "2809"]
[TimeControl "180+1"]
[EndTime "9:43:05 PDT"]
[Termination "OparinGrigoriy won on time"]

1. d4 {[%clk 0:03:00.9]} 1... Nf6 {[%clk 0:02:58.7]} 2. Nc3 {[%clk 0:03:01.3]}
2... d5 {[%clk 0:02:58.1]} 3. Bg5 {[%clk 0:03:01.3]} 3... Nbd7 {[%clk
0:02:55.3]} 4. e3 {[%clk 0:03:01.2]} 4... e6 {[%clk 0:02:55.2]} 5. Nf3 {[%clk
0:03:00.3]} 5... a6 {[%clk 0:02:54.2]} 6. Bd3 {[%clk 0:03:00.5]} 6... c5 {[%clk
0:02:54.2]} 7. O-O {[%clk 0:03:00.1]} 7... Be7 {[%clk 0:02:53]} 8. Re1 {[%clk
0:02:57.3]} 8... O-O {[%clk 0:02:46.2]} 9. e4 {[%clk 0:02:57.6]} 9... c4 {[%clk
0:02:46.5]} 10. Bf1 {[%clk 0:02:57.3]} 10... b5 {[%clk 0:02:46.7]} 11. e5 {[%clk
0:02:54.9]} 11... Ne8 {[%clk 0:02:46.4]} 12. Bxe7 {[%clk 0:02:53.9]} 12... Qxe7
{[%clk 0:02:47.3]} 13. Ne2 {[%clk 0:02:54.5]} 13... Nc7 {[%clk 0:02:43.5]} 14.
Nf4 {[%clk 0:02:51.7]} 14... Bb7 {[%clk 0:02:39.5]} 15. h4 {[%clk 0:02:51.8]}
15... f6 {[%clk 0:02:34.4]} 16. g3 {[%clk 0:02:49.1]} 16... f5 {[%clk
0:02:30.5]} 17. Ng5 {[%clk 0:02:44.2]} 17... Qe8 {[%clk 0:02:19.8]} 18. h5
{[%clk 0:02:38.9]} 18... Qe7 {[%clk 0:02:09.2]} 19. Ngh3 {[%clk 0:02:36]} 19...
Rfe8 {[%clk 0:02:05.1]} 20. Qd2 {[%clk 0:02:33.5]} 20... Nf8 {[%clk 0:02:04.5]}
21. Ng2 {[%clk 0:02:31.3]} 21... g6 {[%clk 0:02:00.5]} 22. h6 {[%clk 0:02:31.5]}
22... b4 {[%clk 0:01:53.1]} 23. Nh4 {[%clk 0:02:29.3]} 23... a5 {[%clk
0:01:51.5]} 24. Qe3 {[%clk 0:02:26.6]} 24... Ba6 {[%clk 0:01:50.1]} 25. c3
{[%clk 0:02:26.6]} 25... Rab8 {[%clk 0:01:49.1]} 26. Nf3 {[%clk 0:02:25.7]}
26... Nb5 {[%clk 0:01:45.2]} 27. Be2 {[%clk 0:02:21]} 27... bxc3 {[%clk
0:01:42.8]} 28. bxc3 {[%clk 0:02:21.9]} 28... Qa3 {[%clk 0:01:42.8]} 29. Rec1
{[%clk 0:02:19.5]} 29... Re7 {[%clk 0:01:39.4]} 30. Bd1 {[%clk 0:02:18.6]} 30...
Reb7 {[%clk 0:01:38.1]} 31. Nfg5 {[%clk 0:02:18.2]} 31... Rb6 {[%clk 0:01:36.2]}
32. Qd2 {[%clk 0:02:14.5]} 32... Nc7 {[%clk 0:01:32.8]} 33. Rc2 {[%clk
0:02:10.3]} 33... Bc8 {[%clk 0:01:29.8]} 34. Kg2 {[%clk 0:02:00.6]} 34... Bd7
{[%clk 0:01:28.7]} 35. g4 {[%clk 0:01:56]} 35... Ba4 {[%clk 0:01:27.6]} 36. Rcc1
{[%clk 0:01:55.9]} 36... Rb2 {[%clk 0:01:26.6]} 37. Qe3 {[%clk 0:01:55.9]} 37...
Bxd1 {[%clk 0:01:19.8]} 38. Rxd1 {[%clk 0:01:56.8]} 38... fxg4 {[%clk
0:01:19.7]} 39. Ng1 {[%clk 0:01:52.2]} 39... Nd7 {[%clk 0:01:13.3]} 40. Ne2
{[%clk 0:01:45.7]} 40... Rf8 {[%clk 0:01:12.2]} 41. Rd2 {[%clk 0:01:46.2]} 41...
Nb6 {[%clk 0:01:05.3]} 42. Rad1 {[%clk 0:01:24]} 42... Qxa2 {[%clk 0:00:51.8]}
43. Nf4 {[%clk 0:01:17.5]} 43... Re8 {[%clk 0:00:33.6]} 44. Nxg6 {[%clk
0:01:17.8]} 44... Rxd2 {[%clk 0:00:19.7]} 45. Rxd2 {[%clk 0:01:17.6]} 45... Qb1
{[%clk 0:00:20.1]} 46. Nh4 {[%clk 0:01:10]} 46... Rf8 {[%clk 0:00:19.1]} 47. Qg3
{[%clk 0:01:04.7]} 47... Kh8 {[%clk 0:00:18.5]} 48. Qxg4 {[%clk 0:01:03]} 48...
Na4 {[%clk 0:00:17.9]} 49. Qg3 {[%clk 0:00:30.3]} 49... Nb6 {[%clk 0:00:15.1]}
50. Re2 {[%clk 0:00:28.5]} 50... a4 {[%clk 0:00:14.6]} 51. Re3 {[%clk 0:00:29]}
51... Qb5 {[%clk 0:00:03.6]} 52. Rf3 {[%clk 0:00:27.3]} 52... Qe8 {[%clk
0:00:03.9]} 53. Rf6 {[%clk 0:00:25]} 1-0

[Event "Early-Titled-Tuesday-Blitz-October-24-2023"]
[Site "Chess.com"]
[Date "2023.10.24"]
[Round "9"]
[White "WPWPWP-2015"]
[Black "dapsay"]
[Result "1-0"]
[WhiteElo "2552"]
[BlackElo "2415"]
[TimeControl "180+1"]
[EndTime "9:43:05 PDT"]
[Termination "WPWPWP-2015 won by resignation"]

1. e4 {[%clk 0:03:00.9]} 1... c5 {[%clk 0:02:58]} 2. Nf3 {[%clk 0:03:00.8]} 2...
e6 {[%clk 0:02:57.3]} 3. d4 {[%clk 0:03:01.2]} 3... cxd4 {[%clk 0:02:58]} 4.
Nxd4 {[%clk 0:03:02.1]} 4... a6 {[%clk 0:02:58.6]} 5. Bd3 {[%clk 0:03:01.9]}
5... Bc5 {[%clk 0:02:57.4]} 6. Nb3 {[%clk 0:03:01.3]} 6... Ba7 {[%clk
0:02:57.6]} 7. O-O {[%clk 0:03:01.4]} 7... Nf6 {[%clk 0:02:53.9]} 8. N1d2 {[%clk
0:03:00.4]} 8... O-O {[%clk 0:02:53.3]} 9. a4 {[%clk 0:03:00.2]} 9... Nc6 {[%clk
0:02:49.2]} 10. Kh1 {[%clk 0:02:56.1]} 10... d5 {[%clk 0:02:49.5]} 11. Qe2
{[%clk 0:02:53.6]} 11... e5 {[%clk 0:02:44.4]} 12. exd5 {[%clk 0:02:50.8]} 12...
Qxd5 {[%clk 0:02:40.1]} 13. Ne4 {[%clk 0:02:49.9]} 13... Nxe4 {[%clk 0:02:30.7]}
14. Bxe4 {[%clk 0:02:47.9]} 14... Qe6 {[%clk 0:02:21.4]} 15. Rd1 {[%clk
0:02:43.7]} 15... Nd4 {[%clk 0:02:20]} 16. Nxd4 {[%clk 0:02:37.1]} 16... Bxd4
{[%clk 0:02:20.3]} 17. c3 {[%clk 0:02:35.8]} 17... Bc5 {[%clk 0:02:18.9]} 18.
Rd5 {[%clk 0:02:31.2]} 18... Be7 {[%clk 0:02:12.8]} 19. Rxe5 {[%clk 0:02:29.2]}
19... Qxe5 {[%clk 0:01:47.8]} 20. Bxh7+ {[%clk 0:02:26.9]} 20... Kxh7 {[%clk
0:01:48.6]} 21. Qxe5 {[%clk 0:02:26.8]} 21... Bf6 {[%clk 0:01:49.4]} 22. Qh5+
{[%clk 0:02:15.9]} 22... Kg8 {[%clk 0:01:49.3]} 23. Bg5 {[%clk 0:02:16.6]} 23...
g6 {[%clk 0:01:47.6]} 24. Qh4 {[%clk 0:02:15.2]} 24... Bg7 {[%clk 0:01:47.8]}
25. Re1 {[%clk 0:02:10.1]} 25... Be6 {[%clk 0:01:47.7]} 26. Bf6 {[%clk
0:02:08.5]} 26... Rac8 {[%clk 0:01:45.4]} 27. Bxg7 {[%clk 0:02:03]} 27... Kxg7
{[%clk 0:01:45.4]} 28. Qe7 {[%clk 0:02:01.7]} 28... Rfe8 {[%clk 0:01:23.8]} 29.
Qb4 {[%clk 0:02:01]} 29... Rb8 {[%clk 0:01:20]} 30. Qd4+ {[%clk 0:01:58.9]}
30... Kg8 {[%clk 0:01:19.8]} 31. h3 {[%clk 0:01:56.5]} 31... b5 {[%clk
0:01:14.2]} 32. a5 {[%clk 0:01:55.9]} 32... Rec8 {[%clk 0:01:00.4]} 33. Qf4
{[%clk 0:01:53.5]} 33... Rb7 {[%clk 0:00:57]} 34. Rd1 {[%clk 0:01:49.9]} 34...
Rbc7 {[%clk 0:00:53.3]} 35. Rd6 {[%clk 0:01:42.6]} 35... Rc4 {[%clk 0:00:49.8]}
36. Qd2 {[%clk 0:01:30.1]} 36... Ra8 {[%clk 0:00:40.5]} 37. Kh2 {[%clk
0:01:25.2]} 37... Rcc8 {[%clk 0:00:38.3]} 38. Qd4 {[%clk 0:01:20.1]} 38... Bc4
{[%clk 0:00:36.7]} 39. h4 {[%clk 0:01:18]} 39... Be6 {[%clk 0:00:29.1]} 40. Qe4
{[%clk 0:01:09]} 40... Bf5 {[%clk 0:00:22.8]} 41. Qf3 {[%clk 0:01:07]} 41... Ra7
{[%clk 0:00:20.6]} 42. h5 {[%clk 0:01:02.8]} 42... Rac7 {[%clk 0:00:19.8]} 43.
Rxa6 {[%clk 0:00:51.8]} 43... Rc4 {[%clk 0:00:20]} 44. Ra8 {[%clk 0:00:41]}
44... Rh4+ {[%clk 0:00:14.1]} 45. Kg1 {[%clk 0:00:40.4]} 45... Rxh5 {[%clk
0:00:14.6]} 46. Rxc8+ {[%clk 0:00:38.8]} 46... Bxc8 {[%clk 0:00:15.3]} 47. a6
{[%clk 0:00:36.4]} 47... Bxa6 {[%clk 0:00:05.6]} 48. Qa8+ {[%clk 0:00:35.2]}
48... Kg7 {[%clk 0:00:06.5]} 49. Qxa6 {[%clk 0:00:35.1]} 49... Rf5 {[%clk
0:00:07.3]} 50. Qd6 {[%clk 0:00:34]} 50... Kh6 {[%clk 0:00:07.2]} 51. Qd4 {[%clk
0:00:33.3]} 51... f6 {[%clk 0:00:06.9]} 52. g4 {[%clk 0:00:32.5]} 52... Re5
{[%clk 0:00:06.5]} 53. Kg2 {[%clk 0:00:31.7]} 53... g5 {[%clk 0:00:06.4]} 54.
Qd8 {[%clk 0:00:28.7]} 54... Kg6 {[%clk 0:00:06.4]} 55. Qg8+ {[%clk 0:00:28.3]}
55... Kh6 {[%clk 0:00:06.5]} 56. b3 {[%clk 0:00:27.2]} 56... Re2 {[%clk
0:00:01.7]} 57. Qd5 {[%clk 0:00:25.2]} 57... Re6 {[%clk 0:00:01.5]} 58. Qxe6
{[%clk 0:00:24.6]} 1-0

[Event "Early-Titled-Tuesday-Blitz-October-24-2023"]
[Site "Chess.com"]
[Date "2023.10.24"]
[Round "9"]
[White "carokannlover213"]
[Black "gau248"]
[Result "1-0"]
[WhiteElo "2747"]
[BlackElo "2595"]
[TimeControl "180+1"]
[EndTime "9:43:08 PDT"]
[Termination "carokannlover213 won by resignation"]

1. e4 {[%clk 0:03:00.9]} 1... e5 {[%clk 0:02:59.6]} 2. Nf3 {[%clk 0:03:00.5]}
2... Nc6 {[%clk 0:03:00.1]} 3. Bb5 {[%clk 0:02:59.7]} 3... Nf6 {[%clk
0:03:00.2]} 4. O-O {[%clk 0:02:56.2]} 4... Nxe4 {[%clk 0:02:58.8]} 5. Re1 {[%clk
0:02:56.8]} 5... Nd6 {[%clk 0:02:57.1]} 6. Nxe5 {[%clk 0:02:52.9]} 6... Nxe5
{[%clk 0:02:56.6]} 7. Rxe5+ {[%clk 0:02:53.8]} 7... Be7 {[%clk 0:02:56.7]} 8.
Bf1 {[%clk 0:02:54.4]} 8... O-O {[%clk 0:02:56]} 9. d4 {[%clk 0:02:54.9]} 9...
Bf6 {[%clk 0:02:47.1]} 10. Re1 {[%clk 0:02:55.1]} 10... Nf5 {[%clk 0:02:46.1]}
11. c3 {[%clk 0:02:54.4]} 11... d5 {[%clk 0:02:46.3]} 12. Bf4 {[%clk 0:02:53.3]}
12... c6 {[%clk 0:02:45.7]} 13. Bd3 {[%clk 0:02:51.7]} 13... g6 {[%clk 0:02:45]}
14. Nd2 {[%clk 0:02:49]} 14... Ng7 {[%clk 0:02:42]} 15. h3 {[%clk 0:02:44.7]}
15... Bf5 {[%clk 0:02:40.7]} 16. Qf3 {[%clk 0:02:39.4]} 16... Bxd3 {[%clk
0:02:39.7]} 17. Qxd3 {[%clk 0:02:40.3]} 17... Qd7 {[%clk 0:02:37.9]} 18. Nf3
{[%clk 0:02:38.9]} 18... Rfe8 {[%clk 0:02:36]} 19. a4 {[%clk 0:02:37]} 19... a5
{[%clk 0:02:32.1]} 20. Be5 {[%clk 0:02:25.9]} 20... Bxe5 {[%clk 0:02:29.8]} 21.
dxe5 {[%clk 0:02:26.8]} 21... c5 {[%clk 0:02:22.6]} 22. Red1 {[%clk 0:02:15]}
22... Rad8 {[%clk 0:02:21.3]} 23. Qe3 {[%clk 0:02:15.6]} 23... b6 {[%clk
0:02:19.4]} 24. Qh6 {[%clk 0:02:07.2]} 24... Nf5 {[%clk 0:02:11.7]} 25. Qf4
{[%clk 0:02:07.3]} 25... Ng7 {[%clk 0:02:04.9]} 26. g4 {[%clk 0:02:06.4]} 26...
h5 {[%clk 0:02:01.1]} 27. Kg2 {[%clk 0:01:47.6]} 27... Qe7 {[%clk 0:01:52.6]}
28. Qh6 {[%clk 0:01:35]} 28... Ne6 {[%clk 0:01:39.9]} 29. gxh5 {[%clk
0:01:33.1]} 29... g5 {[%clk 0:01:34.4]} 30. Rg1 {[%clk 0:00:56.5]} 30... Qf8
{[%clk 0:01:33.2]} 31. Qxf8+ {[%clk 0:00:27.5]} 31... Kxf8 {[%clk 0:01:31.6]}
32. Kh2 {[%clk 0:00:28.4]} 32... d4 {[%clk 0:01:27.1]} 33. cxd4 {[%clk
0:00:27.4]} 33... Nxd4 {[%clk 0:01:28]} 34. Nxd4 {[%clk 0:00:23.7]} 34... Rxd4
{[%clk 0:01:24.4]} 35. Rxg5 {[%clk 0:00:23.3]} 35... Rd2 {[%clk 0:01:25]} 36.
Kg3 {[%clk 0:00:19.5]} 36... Rxb2 {[%clk 0:01:25]} 37. h6 {[%clk 0:00:19.9]}
37... Ke7 {[%clk 0:01:21.7]} 38. Rd1 {[%clk 0:00:10.1]} 38... Rh8 {[%clk
0:01:21.3]} 39. Rd6 {[%clk 0:00:10.7]} 39... c4 {[%clk 0:01:17.3]} 40. Rc6
{[%clk 0:00:09.1]} 40... c3 {[%clk 0:01:16.9]} 41. Rxc3 {[%clk 0:00:02.7]} 41...
Rxh6 {[%clk 0:01:17.1]} 42. f4 {[%clk 0:00:02.3]} 42... Re6 {[%clk 0:01:12.9]}
43. Rf5 {[%clk 0:00:02.3]} 43... Rg6+ {[%clk 0:01:12.8]} 44. Kf3 {[%clk
0:00:02.4]} 44... Rgg2 {[%clk 0:01:11.8]} 45. Rc7+ {[%clk 0:00:02.2]} 45... Ke8
{[%clk 0:01:09.2]} 46. Rc8+ {[%clk 0:00:01.9]} 46... Ke7 {[%clk 0:01:08.8]} 47.
Rc7+ {[%clk 0:00:01.8]} 47... Ke8 {[%clk 0:01:07.4]} 48. Rfxf7 {[%clk
0:00:02.4]} 48... Rbe2 {[%clk 0:00:31.9]} 49. Rh7 {[%clk 0:00:02]} 49... Rgf2+
{[%clk 0:00:29.6]} 50. Kg4 {[%clk 0:00:02.4]} 50... Rg2+ {[%clk 0:00:29.4]} 51.
Kf5 {[%clk 0:00:03]} 51... Kd8 {[%clk 0:00:29.9]} 52. Ra7 {[%clk 0:00:02.8]} 1-0